[Event "Titled Tuesday Blitz March 29 Early 2022"]
[White "Petrova, Irina"]
[Black "Skliarov, Viktor"]
[WhiteFideId "14124122"]
[BlackFideId "14106736"]
[WhiteElo "1993"]
[BlackElo "2229"]
[Result "0-1"]
[Round "01"]
[TimeControl "180+1"]
[Date "2022.03.30"]
[WhiteClock "0:00:19"]
[BlackClock "0:00:06"]

1. e4 {[%clk 0:03:00]}  c5 {[%clk 0:02:59]} 2. Nf3 {[%clk 0:03:00]}  Nc6 {[%clk 0:02:59]} 3. Bb5 {[%clk 0:02:59]}  e6 {[%clk 0:02:59]} 4. Bxc6 {[%clk 0:02:59]}  bxc6 {[%clk 0:03:00]} 5. O-O {[%clk 0:02:52]}  Ne7 {[%clk 0:02:58]} 6. Re1 {[%clk 0:02:52]}  Ng6 {[%clk 0:02:57]} 7. b3 {[%clk 0:02:48]}  Be7 {[%clk 0:02:55]} 8. Bb2 {[%clk 0:02:47]}  O-O {[%clk 0:02:56]} 9. d3 {[%clk 0:02:40]}  f6 {[%clk 0:02:40]} 10. Nbd2 {[%clk 0:02:36]}  e5 {[%clk 0:02:39]} 11. Nc4 {[%clk 0:02:25]}  d5 {[%clk 0:02:14]} 12. Ne3 {[%clk 0:02:22]}  Rb8 {[%clk 0:02:14]} 13. c4 {[%clk 0:02:12]}  Nf4 {[%clk 0:01:51]} 14. g3 {[%clk 0:01:54]}  Nh3+ {[%clk 0:01:44]} 15. Kg2 {[%clk 0:01:53]}  d4 {[%clk 0:01:32]} 16. Nc2 {[%clk 0:01:50]}  Bg4 {[%clk 0:01:18]} 17. Qc1 {[%clk 0:01:20]}  Bxf3+ {[%clk 0:00:51]} 18. Kxf3 {[%clk 0:01:21]}  f5 {[%clk 0:00:52]} 19. Kg2 {[%clk 0:01:12]}  Nxf2 {[%clk 0:00:37]} 20. Kxf2 {[%clk 0:01:10]}  fxe4+ {[%clk 0:00:37]} 21. Kg2 {[%clk 0:01:09]}  exd3 {[%clk 0:00:28]} 22. Rxe5 {[%clk 0:00:54]}  Bd6 {[%clk 0:00:22]} 23. Re1 {[%clk 0:00:37]}  Qf6 {[%clk 0:00:21]} 24. Qd2 {[%clk 0:00:27]}  Qf3+ {[%clk 0:00:19]} 25. Kg1 {[%clk 0:00:27]}  dxc2 {[%clk 0:00:16]} 26. Qxc2 {[%clk 0:00:28]}  Rbe8 {[%clk 0:00:16]} 27. Rxe8 {[%clk 0:00:26]}  Rxe8 {[%clk 0:00:17]} 28. Rf1 {[%clk 0:00:26]}  Qe3+ {[%clk 0:00:17]} 29. Kh1 {[%clk 0:00:23]}  Qe4+ {[%clk 0:00:10]} 30. Qg2 {[%clk 0:00:22]}  Qxg2+ {[%clk 0:00:10]} 31. Kxg2 {[%clk 0:00:23]}  Re2+ {[%clk 0:00:10]} 32. Rf2 {[%clk 0:00:24]}  Rxf2+ {[%clk 0:00:10]} 33. Kxf2 {[%clk 0:00:25]}  Kf7 {[%clk 0:00:10]} 34. Ke2 {[%clk 0:00:25]}  Ke6 {[%clk 0:00:11]} 35. Kd3 {[%clk 0:00:25]}  Kf5 {[%clk 0:00:11]} 36. Bc1 {[%clk 0:00:25]}  h5 {[%clk 0:00:11]} 37. b4 {[%clk 0:00:18]}  Kg4 {[%clk 0:00:03]} 38. bxc5 {[%clk 0:00:15]}  Bxc5 {[%clk 0:00:03]} 39. Bb2 {[%clk 0:00:15]}  Kh3 {[%clk 0:00:03]} 40. Bxd4 {[%clk 0:00:16]}  Bxd4 {[%clk 0:00:03]} 41. Kxd4 {[%clk 0:00:17]}  Kxh2 {[%clk 0:00:04]} 42. Kc5 {[%clk 0:00:17]}  Kxg3 {[%clk 0:00:05]} 43. Kxc6 {[%clk 0:00:18]}  h4 {[%clk 0:00:05]} 44. Kd5 {[%clk 0:00:19]}  h3 {[%clk 0:00:06]} 0-1


[Site "https://www.chess.com"]

[Event "Titled Tuesday Blitz March 29 Early 2022"]
[White "Piliczewski, Bogusz"]
[Black "Riehle, Marco"]
[WhiteFideId "1104144"]
[BlackFideId "12904392"]
[WhiteElo "1896"]
[BlackElo "2462"]
[Result "0-1"]
[Round "01"]
[TimeControl "180+1"]
[Date "2022.03.30"]
[WhiteClock "0:00:12"]
[BlackClock "0:02:00"]

1. d4 {[%clk 0:02:59]}  d5 {[%clk 0:02:59]} 2. Nf3 {[%clk 0:02:59]}  Nf6 {[%clk 0:02:57]} 3. Bf4 {[%clk 0:02:59]}  e6 {[%clk 0:02:51]} 4. h3 {[%clk 0:02:59]}  Bd6 {[%clk 0:02:47]} 5. Bxd6 {[%clk 0:02:57]}  Qxd6 {[%clk 0:02:48]} 6. e3 {[%clk 0:02:57]}  c5 {[%clk 0:02:47]} 7. c3 {[%clk 0:02:56]}  O-O {[%clk 0:02:45]} 8. Bd3 {[%clk 0:02:55]}  b6 {[%clk 0:02:32]} 9. Nbd2 {[%clk 0:02:54]}  Ba6 {[%clk 0:02:31]} 10. Bxa6 {[%clk 0:02:51]}  Nxa6 {[%clk 0:02:32]} 11. O-O {[%clk 0:02:50]}  c4 {[%clk 0:02:26]} 12. Qe2 {[%clk 0:02:48]}  b5 {[%clk 0:02:23]} 13. e4 {[%clk 0:02:41]}  dxe4 {[%clk 0:02:24]} 14. Nxe4 {[%clk 0:02:40]}  Nxe4 {[%clk 0:02:25]} 15. Qxe4 {[%clk 0:02:40]}  Qd5 {[%clk 0:02:21]} 16. Qe2 {[%clk 0:02:27]}  Nc7 {[%clk 0:02:16]} 17. a3 {[%clk 0:02:25]}  a5 {[%clk 0:02:13]} 18. Rfe1 {[%clk 0:02:24]}  Rab8 {[%clk 0:02:12]} 19. Qe5 {[%clk 0:02:20]}  Qxe5 {[%clk 0:02:10]} 20. Rxe5 {[%clk 0:02:20]}  Nd5 {[%clk 0:02:09]} 21. Nd2 {[%clk 0:02:14]}  Rfc8 {[%clk 0:02:08]} 22. Ne4 {[%clk 0:02:10]}  b4 {[%clk 0:02:06]} 23. axb4 {[%clk 0:01:58]}  axb4 {[%clk 0:02:07]} 24. Nc5 {[%clk 0:01:15]}  bxc3 {[%clk 0:02:06]} 25. bxc3 {[%clk 0:01:14]}  Nxc3 {[%clk 0:02:01]} 26. Rc1 {[%clk 0:01:15]}  Rb3 {[%clk 0:02:01]} 27. Nxb3 {[%clk 0:01:04]}  cxb3 {[%clk 0:02:02]} 28. Rc5 {[%clk 0:01:01]}  Rxc5 {[%clk 0:02:00]} 29. dxc5 {[%clk 0:01:00]}  b2 {[%clk 0:01:54]} 30. Re1 {[%clk 0:00:59]}  Kf8 {[%clk 0:01:52]} 31. f4 {[%clk 0:00:48]}  b1=Q {[%clk 0:01:49]} 32. Rxb1 {[%clk 0:00:47]}  Nxb1 {[%clk 0:01:50]} 33. Kf2 {[%clk 0:00:46]}  Ke7 {[%clk 0:01:49]} 34. Ke3 {[%clk 0:00:46]}  Nc3 {[%clk 0:01:48]} 35. Kd4 {[%clk 0:00:46]}  Nb5+ {[%clk 0:01:45]} 36. Kc4 {[%clk 0:00:45]}  Nc7 {[%clk 0:01:45]} 37. g3 {[%clk 0:00:42]}  Kd7 {[%clk 0:01:46]} 38. g4 {[%clk 0:00:39]}  Kc6 {[%clk 0:01:46]} 39. f5 {[%clk 0:00:39]}  e5 {[%clk 0:01:46]} 40. g5 {[%clk 0:00:38]}  f6 {[%clk 0:01:46]} 41. h4 {[%clk 0:00:37]}  Na6 {[%clk 0:01:45]} 42. h5 {[%clk 0:00:35]}  h6 {[%clk 0:01:45]} 43. gxf6 {[%clk 0:00:30]}  gxf6 {[%clk 0:01:46]} 44. Kd3 {[%clk 0:00:18]}  Nxc5+ {[%clk 0:01:47]} 45. Ke3 {[%clk 0:00:18]}  Nb7 {[%clk 0:01:47]} 46. Kf3 {[%clk 0:00:18]}  Nd6 {[%clk 0:01:48]} 47. Kg4 {[%clk 0:00:18]}  Kd5 {[%clk 0:01:49]} 48. Kh4 {[%clk 0:00:16]}  Nxf5+ {[%clk 0:01:50]} 49. Kg4 {[%clk 0:00:16]}  Nd6 {[%clk 0:01:51]} 50. Kf3 {[%clk 0:00:15]}  f5 {[%clk 0:01:52]} 51. Kg3 {[%clk 0:00:14]}  f4+ {[%clk 0:01:53]} 52. Kg4 {[%clk 0:00:14]}  Kd4 {[%clk 0:01:54]} 53. Kh4 {[%clk 0:00:13]}  e4 {[%clk 0:01:54]} 54. Kg4 {[%clk 0:00:13]}  Ke5 {[%clk 0:01:55]} 55. Kh4 {[%clk 0:00:13]}  e3 {[%clk 0:01:56]} 56. Kg4 {[%clk 0:00:13]}  Ke4 {[%clk 0:01:57]} 57. Kh4 {[%clk 0:00:12]}  e2 {[%clk 0:01:58]} 58. Kg4 {[%clk 0:00:12]}  e1=Q {[%clk 0:01:59]} 59. Kh3 {[%clk 0:00:12]}  Qg3# {[%clk 0:02:00]} 0-1


[Site "https://www.chess.com"]

[Event "Titled Tuesday Blitz March 29 Early 2022"]
[White "Polanco Nunez, Yoel Estarling"]
[Black "Tregubov, Pavel V."]
[WhiteFideId "6401783"]
[BlackFideId "4115341"]
[WhiteElo "2132"]
[BlackElo "2341"]
[Result "1-0"]
[Round "01"]
[TimeControl "180+1"]
[Date "2022.03.30"]
[WhiteClock "0:00:20"]
[BlackClock "0:00:14"]

1. d4 {[%clk 0:01:44]}  Nf6 {[%clk 0:02:56]} 2. Nf3 {[%clk 0:01:43]}  e6 {[%clk 0:02:53]} 3. Bg5 {[%clk 0:01:40]}  c5 {[%clk 0:02:52]} 4. c3 {[%clk 0:01:39]}  Be7 {[%clk 0:02:49]} 5. e3 {[%clk 0:01:37]}  b6 {[%clk 0:02:49]} 6. Nbd2 {[%clk 0:01:37]}  Bb7 {[%clk 0:02:49]} 7. Be2 {[%clk 0:01:37]}  Ne4 {[%clk 0:02:47]} 8. Bxe7 {[%clk 0:01:36]}  Qxe7 {[%clk 0:02:47]} 9. O-O {[%clk 0:01:35]}  O-O {[%clk 0:02:47]} 10. Qc2 {[%clk 0:01:33]}  Nxd2 {[%clk 0:02:39]} 11. Nxd2 {[%clk 0:01:34]}  d6 {[%clk 0:02:38]} 12. Bd3 {[%clk 0:01:31]}  h6 {[%clk 0:02:37]} 13. Be4 {[%clk 0:01:31]}  Bxe4 {[%clk 0:02:35]} 14. Qxe4 {[%clk 0:01:30]}  d5 {[%clk 0:02:35]} 15. Qc2 {[%clk 0:01:26]}  Nc6 {[%clk 0:02:35]} 16. Rfe1 {[%clk 0:01:24]}  Rfc8 {[%clk 0:02:33]} 17. Qa4 {[%clk 0:01:23]}  Rab8 {[%clk 0:02:32]} 18. Qa3 {[%clk 0:01:18]}  cxd4 {[%clk 0:02:22]} 19. Qxe7 {[%clk 0:01:17]}  Nxe7 {[%clk 0:02:22]} 20. exd4 {[%clk 0:01:17]}  Nf5 {[%clk 0:02:19]} 21. a4 {[%clk 0:01:17]}  Nd6 {[%clk 0:02:18]} 22. Kf1 {[%clk 0:01:10]}  a6 {[%clk 0:02:18]} 23. Ke2 {[%clk 0:01:08]}  Kf8 {[%clk 0:02:14]} 24. Kd3 {[%clk 0:01:08]}  Ke7 {[%clk 0:02:09]} 25. f3 {[%clk 0:01:06]}  g5 {[%clk 0:02:05]} 26. h4 {[%clk 0:01:05]}  gxh4 {[%clk 0:02:01]} 27. Rh1 {[%clk 0:01:04]}  Nf5 {[%clk 0:02:01]} 28. Nf1 {[%clk 0:01:00]}  Rg8 {[%clk 0:01:59]} 29. Rh2 {[%clk 0:00:58]}  h3 {[%clk 0:01:28]} 30. g4 {[%clk 0:00:47]}  Nd6 {[%clk 0:01:23]} 31. Rxh3 {[%clk 0:00:47]}  f5 {[%clk 0:01:23]} 32. Ne3 {[%clk 0:00:43]}  fxg4 {[%clk 0:00:53]} 33. Nxg4 {[%clk 0:00:44]}  Rbf8 {[%clk 0:00:53]} 34. Re1 {[%clk 0:00:34]}  Rg6 {[%clk 0:00:37]} 35. Re3 {[%clk 0:00:30]}  Nc4 {[%clk 0:00:36]} 36. Re2 {[%clk 0:00:29]}  b5 {[%clk 0:00:31]} 37. b3 {[%clk 0:00:29]}  Na5 {[%clk 0:00:29]} 38. axb5 {[%clk 0:00:29]}  axb5 {[%clk 0:00:29]} 39. b4 {[%clk 0:00:25]}  Nc4 {[%clk 0:00:29]} 40. Ra2 {[%clk 0:00:25]}  Rd8 {[%clk 0:00:23]} 41. Ra7+ {[%clk 0:00:23]}  Rd7 {[%clk 0:00:23]} 42. Rxd7+ {[%clk 0:00:23]}  Kxd7 {[%clk 0:00:24]} 43. Rxh6 {[%clk 0:00:23]}  Rg7 {[%clk 0:00:24]} 44. Rf6 {[%clk 0:00:18]}  Ke7 {[%clk 0:00:23]} 45. Rh6 {[%clk 0:00:18]}  Rf7 {[%clk 0:00:22]} 46. Ke2 {[%clk 0:00:18]}  Kd7 {[%clk 0:00:18]} 47. Rh5 {[%clk 0:00:18]}  Ke7 {[%clk 0:00:18]} 48. Rh8 {[%clk 0:00:18]}  Kd7 {[%clk 0:00:18]} 49. Rb8 {[%clk 0:00:18]}  Kc6 {[%clk 0:00:18]} 50. Rc8+ {[%clk 0:00:17]}  Kd7 {[%clk 0:00:18]} 51. Rxc4 {[%clk 0:00:17]}  dxc4 {[%clk 0:00:12]} 52. Ne5+ {[%clk 0:00:18]}  Ke7 {[%clk 0:00:12]} 53. Nxf7 {[%clk 0:00:19]}  Kxf7 {[%clk 0:00:12]} 54. Ke3 {[%clk 0:00:19]}  Ke7 {[%clk 0:00:12]} 55. Ke4 {[%clk 0:00:20]}  Kd6 {[%clk 0:00:12]} 56. f4 {[%clk 0:00:21]}  Ke7 {[%clk 0:00:12]} 57. d5 {[%clk 0:00:19]}  Kd6 {[%clk 0:00:12]} 58. dxe6 {[%clk 0:00:19]}  Kxe6 {[%clk 0:00:13]} 59. Kd4 {[%clk 0:00:19]}  Kd6 {[%clk 0:00:13]} 60. f5 {[%clk 0:00:19]}  Kc6 {[%clk 0:00:13]} 61. f6 {[%clk 0:00:20]}  Kd6 {[%clk 0:00:14]} 62. f7 {[%clk 0:00:20]} 1-0


[Site "https://www.chess.com"]

[Event "Titled Tuesday Blitz March 29 Early 2022"]
[White "Postny, Evgeny"]
[Black "Vovk, Orest"]
[WhiteFideId "2804344"]
[BlackFideId "14113490"]
[WhiteElo "2483"]
[BlackElo "2203"]
[Result "1-0"]
[Round "01"]
[TimeControl "180+1"]
[Date "2022.03.30"]
[WhiteClock "0:00:50"]
[BlackClock "0:00:03"]

1. e4 {[%clk 0:02:58]}  g5 {[%clk 0:02:45]} 2. d4 {[%clk 0:02:58]}  h6 {[%clk 0:02:43]} 3. Nc3 {[%clk 0:02:58]}  Bg7 {[%clk 0:02:43]} 4. Nf3 {[%clk 0:02:52]}  c5 {[%clk 0:02:41]} 5. dxc5 {[%clk 0:02:49]}  Bxc3+ {[%clk 0:02:40]} 6. bxc3 {[%clk 0:02:48]}  Nc6 {[%clk 0:02:40]} 7. h4 {[%clk 0:02:45]}  g4 {[%clk 0:02:39]} 8. Nd4 {[%clk 0:02:45]}  Qa5 {[%clk 0:02:38]} 9. Nxc6 {[%clk 0:02:38]}  dxc6 {[%clk 0:02:37]} 10. Qd4 {[%clk 0:02:38]}  Nf6 {[%clk 0:02:34]} 11. Bd2 {[%clk 0:02:33]}  Be6 {[%clk 0:02:32]} 12. c4 {[%clk 0:02:31]}  Rd8 {[%clk 0:02:26]} 13. Qe3 {[%clk 0:02:05]}  Qa4 {[%clk 0:01:15]} 14. e5 {[%clk 0:02:02]}  Nh5 {[%clk 0:01:11]} 15. Qb3 {[%clk 0:01:55]}  Qa6 {[%clk 0:01:03]} 16. Bd3 {[%clk 0:01:50]}  g3 {[%clk 0:00:54]} 17. O-O {[%clk 0:01:47]}  gxf2+ {[%clk 0:00:46]} 18. Rxf2 {[%clk 0:01:48]}  Rd4 {[%clk 0:00:45]} 19. Rb1 {[%clk 0:01:37]}  Bc8 {[%clk 0:00:28]} 20. e6 {[%clk 0:01:27]}  Bxe6 {[%clk 0:00:21]} 21. Bc3 {[%clk 0:01:25]}  Rxd3 {[%clk 0:00:13]} 22. cxd3 {[%clk 0:01:24]}  O-O {[%clk 0:00:10]} 23. Qd1 {[%clk 0:01:16]}  Ng7 {[%clk 0:00:08]} 24. Qd2 {[%clk 0:01:02]}  Kh7 {[%clk 0:00:06]} 25. Qe3 {[%clk 0:00:56]}  Rd8 {[%clk 0:00:03]} 26. Bd2 {[%clk 0:00:50]} 1-0


[Site "https://www.chess.com"]

[Event "Titled Tuesday Blitz March 29 Early 2022"]
[White "Ronka, Erik"]
[Black "Tristan, Leonardo"]
[WhiteFideId "505080"]
[BlackFideId "113816"]
[WhiteElo "2264"]
[BlackElo "2404"]
[Result "0-1"]
[Round "01"]
[TimeControl "180+1"]
[Date "2022.03.30"]
[WhiteClock "0:00:10"]
[BlackClock "0:01:38"]

1. e4 {[%clk 0:01:45]}  d5 {[%clk 0:02:55]} 2. exd5 {[%clk 0:01:39]}  Qxd5 {[%clk 0:02:56]} 3. Nc3 {[%clk 0:01:38]}  Qa5 {[%clk 0:02:56]} 4. d4 {[%clk 0:01:38]}  Nf6 {[%clk 0:02:57]} 5. Nf3 {[%clk 0:01:22]}  Bf5 {[%clk 0:02:55]} 6. Bc4 {[%clk 0:01:17]}  e6 {[%clk 0:02:54]} 7. Bd2 {[%clk 0:01:15]}  Bb4 {[%clk 0:02:50]} 8. a3 {[%clk 0:01:14]}  Bxc3 {[%clk 0:02:49]} 9. Bxc3 {[%clk 0:01:15]}  Qb6 {[%clk 0:02:48]} 10. O-O {[%clk 0:01:14]}  Nc6 {[%clk 0:02:46]} 11. Ne5 {[%clk 0:01:01]}  Nxe5 {[%clk 0:02:45]} 12. dxe5 {[%clk 0:00:59]}  Rd8 {[%clk 0:02:46]} 13. Qe2 {[%clk 0:00:56]}  Ne4 {[%clk 0:02:38]} 14. Bb4 {[%clk 0:00:52]}  c5 {[%clk 0:02:35]} 15. Bb5+ {[%clk 0:00:52]}  Ke7 {[%clk 0:02:31]} 16. Be1 {[%clk 0:00:49]}  a6 {[%clk 0:02:29]} 17. Bd3 {[%clk 0:00:48]}  Qxb2 {[%clk 0:02:28]} 18. Bxe4 {[%clk 0:00:43]}  Qxa1 {[%clk 0:02:23]} 19. Bxf5 {[%clk 0:00:31]}  exf5 {[%clk 0:02:24]} 20. Ba5 {[%clk 0:00:15]}  Qxa3 {[%clk 0:02:17]} 21. Bxd8+ {[%clk 0:00:14]}  Rxd8 {[%clk 0:02:17]} 22. Qh5 {[%clk 0:00:14]}  g6 {[%clk 0:02:02]} 23. Qg5+ {[%clk 0:00:13]}  Ke8 {[%clk 0:01:46]} 24. Qf6 {[%clk 0:00:14]}  c4 {[%clk 0:01:44]} 25. Re1 {[%clk 0:00:11]}  Qe7 {[%clk 0:01:43]} 26. Qh8+ {[%clk 0:00:10]}  Kd7 {[%clk 0:01:42]} 27. Qxh7 {[%clk 0:00:10]}  Kc7 {[%clk 0:01:40]} 28. Qh3 {[%clk 0:00:10]}  Qxe5 {[%clk 0:01:38]} 29. Rf1 {[%clk 0:00:10]} 0-1


[Site "https://www.chess.com"]

[Event "Titled Tuesday Blitz March 29 Early 2022"]
[White "Rustemov, Alexander"]
[Black "Glavina, Pablo"]
[WhiteFideId "4119002"]
[BlackFideId "100234"]
[WhiteElo "2757"]
[BlackElo "2369"]
[Result "1-0"]
[Round "01"]
[TimeControl "180+1"]
[Date "2022.03.30"]
[WhiteClock "0:00:59"]
[BlackClock "0:00:16"]

1. d4 {[%clk 0:03:00]}  d5 {[%clk 0:02:54]} 2. c4 {[%clk 0:03:01]}  e6 {[%clk 0:02:51]} 3. Nc3 {[%clk 0:03:01]}  Nf6 {[%clk 0:02:51]} 4. cxd5 {[%clk 0:03:01]}  exd5 {[%clk 0:02:51]} 5. Bg5 {[%clk 0:03:01]}  Be7 {[%clk 0:02:51]} 6. e3 {[%clk 0:03:02]}  O-O {[%clk 0:02:51]} 7. Bd3 {[%clk 0:03:02]}  c6 {[%clk 0:02:51]} 8. Qc2 {[%clk 0:03:02]}  h6 {[%clk 0:02:51]} 9. Bh4 {[%clk 0:03:02]}  Be6 {[%clk 0:02:47]} 10. Nf3 {[%clk 0:03:01]}  Nbd7 {[%clk 0:02:46]} 11. O-O {[%clk 0:03:00]}  Qc7 {[%clk 0:02:31]} 12. Rfc1 {[%clk 0:02:58]}  Bd6 {[%clk 0:02:31]} 13. Nb5 {[%clk 0:02:51]}  Qb8 {[%clk 0:02:30]} 14. Nxd6 {[%clk 0:02:49]}  Qxd6 {[%clk 0:02:31]} 15. Bg3 {[%clk 0:02:44]}  Qe7 {[%clk 0:02:30]} 16. h3 {[%clk 0:02:44]}  Rac8 {[%clk 0:02:25]} 17. b4 {[%clk 0:02:43]}  a6 {[%clk 0:02:06]} 18. a4 {[%clk 0:02:37]}  Nb6 {[%clk 0:01:48]} 19. Qc5 {[%clk 0:02:34]}  Qxc5 {[%clk 0:01:43]} 20. bxc5 {[%clk 0:02:31]}  Nc4 {[%clk 0:01:43]} 21. Rab1 {[%clk 0:02:28]}  Na5 {[%clk 0:01:35]} 22. Nd2 {[%clk 0:02:16]}  Rfd8 {[%clk 0:01:32]} 23. Nb3 {[%clk 0:02:15]}  Nxb3 {[%clk 0:01:30]} 24. Rxb3 {[%clk 0:02:15]}  Rd7 {[%clk 0:01:23]} 25. Rcb1 {[%clk 0:02:15]}  Ne4 {[%clk 0:01:23]} 26. Bxe4 {[%clk 0:02:04]}  dxe4 {[%clk 0:01:24]} 27. Rxb7 {[%clk 0:02:04]}  Rxb7 {[%clk 0:00:57]} 28. Rxb7 {[%clk 0:02:04]}  g5 {[%clk 0:00:57]} 29. Be5 {[%clk 0:01:54]}  Kh7 {[%clk 0:00:50]} 30. a5 {[%clk 0:01:43]}  Kg6 {[%clk 0:00:49]} 31. Rb6 {[%clk 0:01:25]}  Bc4 {[%clk 0:00:48]} 32. g4 {[%clk 0:01:21]}  f6 {[%clk 0:00:46]} 33. Bd6 {[%clk 0:01:20]}  h5 {[%clk 0:00:38]} 34. gxh5+ {[%clk 0:01:15]}  Kxh5 {[%clk 0:00:39]} 35. Kg2 {[%clk 0:01:16]}  Kg6 {[%clk 0:00:36]} 36. Kg3 {[%clk 0:01:09]}  Bd3 {[%clk 0:00:32]} 37. h4 {[%clk 0:01:06]}  gxh4+ {[%clk 0:00:30]} 38. Kxh4 {[%clk 0:01:06]}  Bc4 {[%clk 0:00:27]} 39. Kg4 {[%clk 0:01:05]}  f5+ {[%clk 0:00:19]} 40. Kf4 {[%clk 0:01:05]}  Kf6 {[%clk 0:00:19]} 41. Rb7 {[%clk 0:00:58]}  Rg8 {[%clk 0:00:18]} 42. Be7+ {[%clk 0:00:58]}  Ke6 {[%clk 0:00:18]} 43. Bg5 {[%clk 0:00:58]}  Rh8 {[%clk 0:00:15]} 44. Re7+ {[%clk 0:00:58]}  Kd5 {[%clk 0:00:16]} 45. Re5# {[%clk 0:00:59]} 1-0


[Site "https://www.chess.com"]

[Event "Titled Tuesday Blitz March 29 Early 2022"]
[White "Seo, Jung Min"]
[Black "Heinemann, Josefine"]
[WhiteFideId "1734687"]
[BlackFideId "12900460"]
[WhiteElo "2401"]
[BlackElo "2300"]
[Result "1-0"]
[Round "01"]
[TimeControl "180+1"]
[Date "2022.03.30"]
[WhiteClock "0:01:40"]
[BlackClock "0:00:01"]

1. e4 {[%clk 0:02:59]}  c6 {[%clk 0:02:57]} 2. Nf3 {[%clk 0:02:58]}  d5 {[%clk 0:02:55]} 3. Nc3 {[%clk 0:02:59]}  Bg4 {[%clk 0:02:44]} 4. h3 {[%clk 0:02:59]}  Bxf3 {[%clk 0:02:43]} 5. Qxf3 {[%clk 0:03:00]}  e6 {[%clk 0:02:44]} 6. d4 {[%clk 0:02:58]}  dxe4 {[%clk 0:02:43]} 7. Qxe4 {[%clk 0:02:58]}  Nf6 {[%clk 0:02:39]} 8. Qd3 {[%clk 0:02:58]}  Nbd7 {[%clk 0:02:38]} 9. Be2 {[%clk 0:02:57]}  Be7 {[%clk 0:02:35]} 10. O-O {[%clk 0:02:57]}  O-O {[%clk 0:02:35]} 11. Rd1 {[%clk 0:02:58]}  Qc7 {[%clk 0:02:22]} 12. Ne4 {[%clk 0:02:57]}  Nxe4 {[%clk 0:02:14]} 13. Qxe4 {[%clk 0:02:57]}  Nf6 {[%clk 0:02:14]} 14. Qf3 {[%clk 0:02:56]}  Rfd8 {[%clk 0:02:09]} 15. c3 {[%clk 0:02:55]}  c5 {[%clk 0:01:49]} 16. dxc5 {[%clk 0:02:39]}  Bxc5 {[%clk 0:01:44]} 17. Bf4 {[%clk 0:02:37]}  Qb6 {[%clk 0:01:33]} 18. b4 {[%clk 0:02:36]}  Be7 {[%clk 0:01:32]} 19. a3 {[%clk 0:02:35]}  Nd5 {[%clk 0:01:24]} 20. Bd2 {[%clk 0:02:33]}  Bf6 {[%clk 0:01:19]} 21. Rac1 {[%clk 0:02:32]}  Rac8 {[%clk 0:01:01]} 22. c4 {[%clk 0:02:31]}  Ne7 {[%clk 0:01:01]} 23. Be3 {[%clk 0:02:30]}  Qc7 {[%clk 0:00:58]} 24. Bd3 {[%clk 0:02:25]}  Ng6 {[%clk 0:00:55]} 25. Be4 {[%clk 0:02:21]}  b6 {[%clk 0:00:49]} 26. c5 {[%clk 0:02:19]}  bxc5 {[%clk 0:00:47]} 27. Rxc5 {[%clk 0:02:17]}  Qe7 {[%clk 0:00:43]} 28. Rxd8+ {[%clk 0:02:16]}  Rxd8 {[%clk 0:00:42]} 29. g3 {[%clk 0:02:14]}  Ne5 {[%clk 0:00:36]} 30. Qe2 {[%clk 0:02:13]}  g6 {[%clk 0:00:26]} 31. Qc2 {[%clk 0:02:12]}  Qd7 {[%clk 0:00:19]} 32. Rc7 {[%clk 0:02:10]}  Qd6 {[%clk 0:00:10]} 33. Rxa7 {[%clk 0:02:08]}  h5 {[%clk 0:00:10]} 34. Qc7 {[%clk 0:02:00]}  Qd1+ {[%clk 0:00:09]} 35. Kg2 {[%clk 0:02:01]}  h4 {[%clk 0:00:09]} 36. Bf4 {[%clk 0:01:58]}  Rd7 {[%clk 0:00:03]} 37. Qb8+ {[%clk 0:01:50]}  Rd8 {[%clk 0:00:02]} 38. Qb7 {[%clk 0:01:49]}  Rd7 {[%clk 0:00:02]} 39. Qa6 {[%clk 0:01:45]}  hxg3 {[%clk 0:00:01]} 40. Bxg3 {[%clk 0:01:40]} 1-0


[Site "https://www.chess.com"]

[Event "Titled Tuesday Blitz March 29 Early 2022"]
[White "Shuvalova, Polina"]
[Black "Fathy, Elameir"]
[WhiteFideId "24171760"]
[BlackFideId "10600396"]
[WhiteElo "2355"]
[BlackElo "2311"]
[Result "1/2-1/2"]
[Round "01"]
[TimeControl "180+1"]
[Date "2022.03.30"]
[WhiteClock "0:00:08"]
[BlackClock "0:00:03"]

1. d4 {[%clk 0:02:59]}  d5 {[%clk 0:02:58]} 2. Nf3 {[%clk 0:02:57]}  Nf6 {[%clk 0:02:57]} 3. Bf4 {[%clk 0:02:57]}  c5 {[%clk 0:02:55]} 4. e3 {[%clk 0:02:56]}  Nc6 {[%clk 0:02:56]} 5. Nbd2 {[%clk 0:02:56]}  Qb6 {[%clk 0:02:56]} 6. dxc5 {[%clk 0:02:55]}  Qxb2 {[%clk 0:02:56]} 7. Rb1 {[%clk 0:02:53]}  Qc3 {[%clk 0:02:56]} 8. Bb5 {[%clk 0:02:53]}  g6 {[%clk 0:02:56]} 9. O-O {[%clk 0:02:49]}  Bg7 {[%clk 0:02:56]} 10. Ne5 {[%clk 0:02:35]}  Qxc5 {[%clk 0:02:23]} 11. c4 {[%clk 0:02:33]}  O-O {[%clk 0:02:11]} 12. Nb3 {[%clk 0:02:31]}  Qa3 {[%clk 0:01:42]} 13. Nxc6 {[%clk 0:02:23]}  bxc6 {[%clk 0:01:43]} 14. Bxc6 {[%clk 0:02:23]}  Bf5 {[%clk 0:01:33]} 15. Bxa8 {[%clk 0:02:19]}  Bxb1 {[%clk 0:01:33]} 16. Qxb1 {[%clk 0:02:10]}  Rxa8 {[%clk 0:01:31]} 17. Rc1 {[%clk 0:02:10]}  dxc4 {[%clk 0:01:26]} 18. Rxc4 {[%clk 0:02:11]}  Rd8 {[%clk 0:01:14]} 19. h3 {[%clk 0:02:05]}  Nd5 {[%clk 0:01:11]} 20. Bc7 {[%clk 0:01:34]}  Nxc7 {[%clk 0:00:52]} 21. Rxc7 {[%clk 0:01:32]}  Be5 {[%clk 0:00:51]} 22. Rc4 {[%clk 0:01:26]}  Qxa2 {[%clk 0:00:38]} 23. Rc1 {[%clk 0:01:12]}  Qxb1 {[%clk 0:00:38]} 24. Rxb1 {[%clk 0:01:12]}  Rb8 {[%clk 0:00:38]} 25. Nd2 {[%clk 0:01:08]}  Rxb1+ {[%clk 0:00:38]} 26. Nxb1 {[%clk 0:01:09]}  a5 {[%clk 0:00:39]} 27. Kf1 {[%clk 0:01:03]}  a4 {[%clk 0:00:37]} 28. Ke2 {[%clk 0:00:58]}  Bd6 {[%clk 0:00:19]} 29. Kd3 {[%clk 0:00:57]}  a3 {[%clk 0:00:15]} 30. Nc3 {[%clk 0:00:57]}  f5 {[%clk 0:00:10]} 31. Kc4 {[%clk 0:00:52]}  Kf7 {[%clk 0:00:10]} 32. Kb3 {[%clk 0:00:50]}  e5 {[%clk 0:00:10]} 33. Nb5 {[%clk 0:00:50]}  Ke6 {[%clk 0:00:10]} 34. Nxa3 {[%clk 0:00:44]}  Bxa3 {[%clk 0:00:10]} 35. Kxa3 {[%clk 0:00:45]}  Kd5 {[%clk 0:00:10]} 36. Kb3 {[%clk 0:00:45]}  Ke4 {[%clk 0:00:10]} 37. Kc3 {[%clk 0:00:34]}  f4 {[%clk 0:00:11]} 38. exf4 {[%clk 0:00:33]}  exf4 {[%clk 0:00:12]} 39. h4 {[%clk 0:00:26]}  h6 {[%clk 0:00:09]} 40. Kc4 {[%clk 0:00:17]}  g5 {[%clk 0:00:08]} 41. hxg5 {[%clk 0:00:17]}  hxg5 {[%clk 0:00:09]} 42. Kc3 {[%clk 0:00:18]}  g4 {[%clk 0:00:09]} 43. Kd2 {[%clk 0:00:13]}  f3 {[%clk 0:00:03]} 44. g3 {[%clk 0:00:10]}  Kd4 {[%clk 0:00:03]} 45. Kc2 {[%clk 0:00:10]}  Kc4 {[%clk 0:00:02]} 46. Kd2 {[%clk 0:00:11]}  Kd4 {[%clk 0:00:02]} 47. Kc2 {[%clk 0:00:11]}  Kc4 {[%clk 0:00:03]} 48. Kd2 {[%clk 0:00:08]}  Kd4 {[%clk 0:00:03]} 1/2-1/2


[Site "https://www.chess.com"]